Workbook

Sheet Uitgaven
B3: Budget van evenement voor [Naam evenement]
H4: Onkosten
H6: Geschat | I6: Werkelijk
C7: Totale onkosten | H7: =SUM(D14,D22,D28,D35,H14,H22,H27) -> € 1,145.00 | I7: =SUM(E14,E22,E28,E35,I14,I22,I27) -> € 395.00
C9: Locatie | D9: Geschat | E9: Werkelijk | G9: Hapjes en drankjes | H9: Geschat | I9: Werkelijk
C10: Kamer- en zaalkosten | D10: € 500.00 | E10: € 250.00 | G10: Eten en drinken
C11: Personeel op locatie | D11: € 400.00 | E11: € 50.00 | G11: Drinken
C12: Apparatuur | G12: Linnengoed
C13: Tafels en stoelen | G13: Personeel en fooien
C14: Totaal | D14: =SUBTOTAL(109,Tabel1[Geschat]) -> € 900.00 | E14: =SUBTOTAL(109,Tabel1[Werkelijk]) -> € 300.00 | G14: Totaal | H14: =SUBTOTAL(109,Tabel5[Geschat]) -> € 0.00 | I14: =SUBTOTAL(109,Tabel5[Werkelijk]) -> € 0.00
C16: Versieringen | D16: Geschat | E16: Werkelijk | G16: Programma | H16: Geschat | I16: Werkelijk
C17: Bloemen | D17: € 200.00 | E17: € 50.00 | G17: Artiesten
C18: Kaarsen | G18: Sprekers
C19: Verlichting | G19: Reis
C20: Ballonnen | G20: Hotel
C21: Papier | G21: Anders
C22: Totaal | D22: =SUBTOTAL(109,Tabel2[Geschat]) -> € 200.00 | E22: =SUBTOTAL(109,Tabel2[Werkelijk]) -> € 50.00 | G22: Totaal | H22: =SUBTOTAL(109,Table6[Geschat]) -> € 0.00 | I22: =SUBTOTAL(109,Table6[Werkelijk]) -> € 0.00
C24: Publiciteit | D24: Geschat | E24: Werkelijk | G24: Prijzen | H24: Geschat | I24: Werkelijk
C25: Grafisch ontwerp | D25: € 45.00 | E25: € 45.00 | G25: Lintjes/medailles/trofeeën
C26: Kopiëren/drukken | G26: Cadeaus
C27: Portokosten | G27: Totaal | H27: =SUBTOTAL(109,Tabel7[Geschat]) -> € 0.00 | I27: =SUBTOTAL(109,Tabel7[Werkelijk]) -> € 0.00
C28: Totaal | D28: =SUBTOTAL(109,Tabel3[Geschat]) -> € 45.00 | E28: =SUBTOTAL(109,Tabel3[Werkelijk]) -> € 45.00
C30: Diversen | D30: Geschat | E30: Werkelijk
C31: Telefoon
C32: Vervoer
C33: Kantoorbenodigdheden
C34: Faxkosten
C35: Totaal | D35: =SUBTOTAL(109,Tabel4[Geschat]) -> € 0.00 | E35: =SUBTOTAL(109,Tabel4[Werkelijk]) -> € 0.00

Sheet Inkomsten
B3: Budget van evenement voor [Naam evenement]
F4: Inkomsten
F6: Geschat | G6: Werkelijk
B7: Totale inkomsten | F7: =SUM(F14,F21,F28,F36) -> € 1,936.00 | G7: =SUM(G14,G21,G28,G36) -> € 1,831.00
B9: Toegangsbewijzen
B10: Geschat | C10: Werkelijk | F10: Geschat | G10: Werkelijk
B11: 300 | C11: 278 | D11: Volwassenen à | E11: € 5.00 | F11: =B11*E11 -> € 1,500.00 | G11: =C11*E11 -> € 1,390.00
B12: 197 | C12: 195 | D12: Kinderen à | E12: € 2.00 | F12: =B12*E12 -> € 394.00 | G12: =C12*E12 -> € 390.00
B13: 42 | C13: 51 | D13: Overige à | E13: € 1.00 | F13: =B13*E13 -> € 42.00 | G13: =C13*E13 -> € 51.00
F14: =SUM(F11:F13) -> € 1,936.00 | G14: =SUM(G11:G13) -> € 1,831.00
B16: Advertenties in programmaboekje
B17: Geschat | C17: Werkelijk | F17: Geschat | G17: Werkelijk
D18: Volledige pagina à | F18: =B18*E18 -> € 0.00 | G18: =C18*E18 -> € 0.00
D19: Halve pagina à | F19: =B19*E19 -> € 0.00 | G19: =C19*E19 -> € 0.00
D20: Kwart pagina à | F20: =B20*E20 -> € 0.00 | G20: =C20*E20 -> € 0.00
F21: =SUM(F18:F20) -> € 0.00 | G21: =SUM(G18:G20) -> € 0.00
B23: Exposanten/verkopers
B24: Geschat | C24: Werkelijk | F24: Geschat | G24: Werkelijk
D25: Grote stands à | F25: =B25*E25 -> € 0.00 | G25: =C25*E25 -> € 0.00
D26: Middelgrote stands à | F26: =B26*E26 -> € 0.00 | G26: =C26*E26 -> € 0.00
D27: Kleine stands à | F27: =B27*E27 -> € 0.00 | G27: =C27*E27 -> € 0.00
F28: =SUM(F25:F27) -> € 0.00 | G28: =SUM(G25:G27) -> € 0.00
B30: Verkoop van artikelen
B31: Geschat | C31: Werkelijk | F31: Geschat | G31: Werkelijk
D32: Items à | F32: =B32*E32 -> € 0.00 | G32: =C32*E32 -> € 0.00
D33: Items à | F33: =B33*E33 -> € 0.00 | G33: =C33*E33 -> € 0.00
D34: Items à | F34: =B34*E34 -> € 0.00 | G34: =C34*E34 -> € 0.00
D35: Items à | F35: =B35*E35 -> € 0.00 | G35: =C35*E35 -> € 0.00
F36: =SUM(F32:F35) -> € 0.00 | G36: =SUM(G32:G35) -> € 0.00

Sheet Overzicht
B3: Budget van evenement voor [Naam evenement]
F4: Winst-en-verliesrekening
F6: Geschat | G6: Werkelijk
B7: Totale inkomsten | F7: =Inkomsten!F7 -> € 1,936.00 | G7: =Inkomsten!G7 -> € 1,831.00
B8: Totale onkosten | F8: =Uitgaven!H7 -> € 1,145.00 | G8: =Uitgaven!I7 -> € 395.00
B9: Totale winst (of verlies) | F9: =F7-F8 -> € 791.00 | G9: =G7-G8 -> € 1,436.00
